fUST/lending_fUST_20250822
["ID","MTS","AMOUNT","RATE_DAILY","PERIOD"]
[380515466,1755798660211,-589.21,0.00021165,2]
[380515467,1755798660220,-621.55,0.00021165,2]
[380515468,1755798660230,-1495.64,0.00021165,2]
[380515469,1755798660240,-552.61370532,0.00021165,2]
[380515470,1755798660249,-695.63,0.00021165,2]
[380515471,1755798660259,-654.93,0.00021165,2]
[380515472,1755798660269,-865.47,0.00021165,2]
[380515473,1755798660278,-3867.5,0.00021165,2]
[380515474,1755798660287,-7219.66,0.00021165,2]
[380515475,1755798660297,-951.02,0.00021165,2]
[380515476,1755798660306,-1837.57,0.00021165,2]
[380515477,1755798660316,-818.75,0.00021165,2]
[380515478,1755798660325,-480.0,0.00021165,2]
[380515479,1755798660334,-548.67,0.00021165,2]
[380515480,1755798660344,-1521.11,0.00021165,2]
[380515481,1755798660354,-1381.99,0.00021165,2]
[380515482,1755798660364,-480.0,0.00021165,2]
[380515483,1755798660374,-480.0,0.00021165,2]
[380515484,1755798660384,-866.39,0.00021165,2]
[380515485,1755798660394,-480.0,0.00021165,2]
[380515486,1755798660405,-480.0,0.00021165,2]
[380515487,1755798660415,-2767.93,0.00021165,2]
[380515488,1755798660425,-480.0,0.00021165,2]
[380515489,1755798660435,-480.0,0.00021165,2]
[380515490,1755798660445,-151.0,0.00021166,2]
[380515491,1755798660454,-556.05,0.00021166,2]
[380515492,1755798660464,-480.0,0.00021166,2]
[380515493,1755798660473,-480.0,0.00021166,2]
[380515494,1755798660483,-480.0,0.00021166,2]
[380515495,1755798660493,-494.94,0.00021166,2]
[380515496,1755798660502,-480.0,0.00021166,2]
[380515497,1755798660512,-480.0,0.00021166,2]
[380515498,1755798660521,-639.33,0.00021166,2]
[380515499,1755798660531,-480.0,0.00021166,2]
[380515500,1755798660541,-480.0,0.00021166,2]
[380515501,1755798660550,-1760.29,0.00021166,2]
[380515502,1755798660560,-480.0,0.00021166,2]
[380515503,1755798660570,-480.0,0.00021166,2]
[380515504,1755798660580,-480.0,0.00021166,2]
[380515505,1755798660590,-590.52,0.00021166,2]
[380515506,1755798660600,-480.0,0.00021167,2]
[380515507,1755798660609,-480.0,0.00021167,2]
[380515508,1755798660619,-480.0,0.00021167,2]
[380515509,1755798660629,-635.25,0.00021167,2]
[380515510,1755798660639,-480.0,0.00021167,2]
[380515511,1755798660649,-472.16967012,0.00021167,2]
[380515512,1755798660659,-480.0,0.00021167,2]
[380515513,1755798660668,-799.42,0.00021167,2]
[380515514,1755798660678,-480.0,0.00021167,2]
[380515515,1755798660688,-480.0,0.00021167,2]
[380515516,1755798660698,-480.0,0.00021167,2]
[380515517,1755798660708,-480.0,0.00021167,2]
[380515518,1755798660718,-480.0,0.00021167,2]
[380515519,1755798660727,-480.0,0.00021167,2]
[380515520,1755798660739,-1000.0,0.000212,2]
[380515521,1755798660749,-1000.0,0.00021234,2]
[380515522,1755798660758,-462.85309979,0.00021234,2]
[380515523,1755798660766,-1000.0,0.00021234,2]
[380515524,1755798660775,-500.0,0.00021234,2]
[380515525,1755798660786,-1000.0,0.00021234,2]
[380515526,1755798660798,-1000.0,0.00021234,2]
[380515527,1755798660809,-1001.13578343,0.00021234,2]
[380515528,1755798660819,-729.17593998,0.00021234,2]
[380515529,1755798660829,-1000.0,0.00021234,2]
[380515530,1755798660839,-1000.0,0.00021234,2]
[380515531,1755798660849,-1000.0,0.00021234,2]
[380515532,1755798660858,-1000.0,0.00021234,2]
[380515533,1755798660868,-1000.0,0.00021234,2]
[380515534,1755798660878,-688.34441399,0.00021234,2]
[380515535,1755798660887,-1000.0,0.00021234,2]
[380515536,1755798660897,-1000.0,0.00021234,2]
[380515537,1755798660906,-1680.0,0.00021239,2]
[380515538,1755798660915,-480.0,0.00021266,2]
[380515539,1755798660925,-480.0,0.00021266,2]
[380515540,1755798660935,-480.0,0.00021266,2]
[380515541,1755798660945,-480.0,0.00021266,2]
[380515542,1755798660954,-578.48,0.00021269,2]
[380515543,1755798660964,-480.0,0.00021269,2]
[380515544,1755798660973,-480.0,0.00021269,2]
[380515545,1755798660983,-480.0,0.00021269,2]
[380515546,1755798660993,-480.0,0.00021269,2]
[380515547,1755798661003,-500.0,0.00021274,2]
[380515548,1755798661012,-500.0,0.00021274,2]
[380515549,1755798661022,-500.0,0.00021274,2]
[380515550,1755798661031,-991.62736273,0.00021274,2]
[380515551,1755798661042,-413.03212136,0.000213,2]
[380515552,1755798661056,-480.0,0.00021328,2]
[380515553,1755798661065,-480.0,0.00021328,2]
[380515554,1755798661075,-480.0,0.00021329,2]
[380515555,1755798661086,-674.49,0.00021329,2]
[380515556,1755798661096,-862.49,0.00021329,2]
[380515557,1755798661105,-730.52,0.00021329,2]
[380515558,1755798661115,-2992.55,0.00021329,2]
[380515559,1755798661125,-609.58,0.0002133,2]
[380515560,1755798661136,-1761.08,0.0002133,2]
[380515561,1755798661145,-5081.96,0.0002133,2]
[380515562,1755798661155,-476.84909261,0.0002133,2]
[380515563,1755798661168,-1099.74,0.0002133,2]
[380515564,1755798661177,-480.0,0.0002133,2]
[380515565,1755798661187,-480.0,0.0002133,2]
[380515566,1755798661197,-754.87,0.0002133,2]
[380515567,1755798661206,-480.0,0.0002133,2]
[380515568,1755798661216,-4586.59,0.0002133,2]
[380515569,1755798661226,-4179.87,0.0002133,2]
[380515570,1755798661236,-3124.04,0.0002133,2]
[380515571,1755798661245,-595.07,0.0002133,2]
[380515572,1755798661255,-480.0,0.0002133,2]
[380515573,1755798661264,-292.44556925,0.0002133,2]
[380515574,1755798661274,-2044.44,0.0002133,2]
[380515575,1755798661284,-889.73,0.0002133,2]
[380515576,1755798661294,-2890.7,0.0002133,2]
[380515577,1755798661303,-480.0,0.0002133,2]
[380515578,1755798661313,-876.44,0.0002133,2]
[380515579,1755798661322,-480.0,0.0002133,2]
[380515580,1755798661331,-480.0,0.0002133,2]
[380515581,1755798661341,-480.0,0.0002133,2]
[380515582,1755798661350,-1169.46,0.0002133,2]
[380515583,1755798661359,-1078.29,0.0002133,2]
[380515584,1755798661369,-480.0,0.00021339,2]
[380515585,1755798661378,-480.0,0.00021339,2]
[380515586,1755798661387,-1033.16,0.00021339,2]
[380515587,1755798661397,-1678.05,0.00021339,2]
[380515588,1755798661407,-957.28,0.00021339,2]
[380515589,1755798661416,-480.0,0.00021339,2]
[380515590,1755798661426,-543.15401289,0.00021339,2]
[380515591,1755798661436,-647.49,0.00021339,2]
[380515592,1755798661448,-480.0,0.00021339,2]
[380515593,1755798661457,-1420.27,0.00021339,2]
[380515594,1755798661466,-480.0,0.00021339,2]
[380515595,1755798661475,-480.0,0.00021339,2]
[380515596,1755798661484,-614.7,0.00021339,2]
[380515597,1755798661493,-1678.64,0.00021339,2]
[380515598,1755798661502,-517.14,0.00021339,2]
[380515599,1755798661512,-767.97,0.00021339,2]
[380515600,1755798661521,-1078.68,0.00021339,2]
[380515601,1755798661531,-1461.11,0.00021339,2]
[380515602,1755798661540,-480.0,0.00021339,2]
[380515603,1755798661549,-480.0,0.00021339,2]
[380515604,1755798661559,-480.0,0.00021339,2]
[380515605,1755798661568,-836.24,0.00021339,2]
[380515606,1755798661577,-467.15239721,0.00021339,2]
[380515607,1755798661586,-793.0,0.00021339,2]
[380515608,1755798661596,-480.0,0.00021339,2]
[380515609,1755798661605,-1030.12,0.00021339,2]
[380515610,1755798661615,-670.29,0.00021339,2]
[380515611,1755798661624,-480.0,0.00021339,2]
[380515612,1755798661633,-1000.0,0.0002134,2]
[380515613,1755798661642,-1000.0,0.0002134,2]
[380515614,1755798661652,-499.33,0.0002134,2]
[380515615,1755798661661,-480.0,0.0002134,2]
[380515616,1755798661671,-480.0,0.0002134,2]
[380515617,1755798661680,-1326.62,0.0002134,2]
[380515618,1755798661690,-480.0,0.0002134,2]
[380515619,1755798661701,-480.0,0.0002134,2]
[380515620,1755798661711,-3284.89,0.0002134,2]
[380515621,1755798661720,-2041.53,0.0002134,2]
[380515622,1755798661730,-480.0,0.0002134,2]
[380515623,1755798661740,-924.89,0.0002134,2]
[380515624,1755798661750,-151.0,0.0002134,2]
[380515625,1755798661759,-151.0,0.0002134,2]
[380515626,1755798661769,-151.0,0.0002134,2]
[380515627,1755798661780,-151.0,0.0002134,2]
[380515628,1755798661789,-152.927246,0.0002134,2]
[380515629,1755798661799,-151.0,0.0002134,2]
[380515630,1755798661808,-151.0,0.0002134,2]
[380515631,1755798661818,-151.0,0.0002134,2]
[380515632,1755798661827,-11152.98,0.0002134,2]
[380515633,1755798661836,-9515.28,0.0002134,2]
[380515634,1755798661845,-151.0,0.0002134,2]
[380515635,1755798661855,-151.0,0.0002134,2]
[380515636,1755798661864,-1197.74,0.0002134,2]
[380515637,1755798661874,-2074.83,0.0002134,2]
[380515638,1755798661884,-151.0,0.0002134,2]
[380515639,1755798661894,-151.0,0.0002134,2]
[380515640,1755798661904,-218.667135,0.0002134,2]
[380515641,1755798661915,-305.24713778,0.00021372,2]
[380515642,1755798661927,-500.0,0.00021372,2]
[380515643,1755798661936,-1000.0,0.00021372,2]
[380515644,1755798661945,-500.0,0.00021372,2]
[380515645,1755798661954,-500.0,0.00021372,2]
[380515646,1755798661964,-1000.0,0.00021372,2]
[380515647,1755798661973,-1000.0,0.00021372,2]
[380515648,1755798661982,-500.0,0.00021372,2]
[380515649,1755798661992,-299.74652647,0.00021372,2]
[380515650,1755798662001,-151.0,0.00021372,2]
[380515651,1755798662011,-151.0,0.00021372,2]
[380515652,1755798662022,-151.0,0.00021372,2]
[380515653,1755798662032,-151.0,0.00021372,2]
[380515654,1755798662043,-408.49513684,0.00021404,2]
[380515655,1755798662058,-2000.0,0.00021416,2]
[380515656,1755798662067,-2000.0,0.00021416,2]
[380515657,1755798662077,-1608.87271415,0.00021416,2]
[380515658,1755798662088,-2000.0,0.00021416,2]
[380515659,1755798662098,-2000.0,0.00021416,2]
[380515660,1755798662108,-1500.0,0.00021416,2]
[380515661,1755798662119,-2000.0,0.00021416,2]
[380515662,1755798662129,-2000.0,0.00021416,2]
[380515663,1755798662138,-160.0,0.00021438,2]
[380515664,1755798662149,-480.0,0.00021439,2]
[380515665,1755798662158,-480.0,0.00021439,2]
[380515666,1755798662168,-480.0,0.00021439,2]
[380515667,1755798662177,-723.94,0.00021439,2]
[380515668,1755798662187,-480.0,0.00021439,2]
[380515669,1755798662196,-727.19,0.00021439,2]
[380515670,1755798662207,-480.0,0.00021439,2]
[380515671,1755798662217,-480.0,0.00021439,2]
[380515672,1755798662228,-480.0,0.00021439,2]
[380515673,1755798662238,-1507.01,0.00021439,2]
[380515674,1755798662248,-492.61,0.00021439,2]
[380515675,1755798662258,-524.9,0.00021439,2]
[380515676,1755798662268,-1428.16,0.00021439,2]
[380515677,1755798662277,-872.4,0.00021439,2]
[380515678,1755798662287,-483.84,0.00021439,2]
[380515679,1755798662299,-480.0,0.00021439,2]
[380515680,1755798662309,-480.0,0.00021439,2]
[380515681,1755798662319,-480.0,0.00021439,2]
[380515682,1755798662329,-480.0,0.00021439,2]
[380515683,1755798662338,-480.0,0.00021439,2]
[380515684,1755798662348,-480.0,0.00021439,2]
[380515685,1755798662357,-480.0,0.00021439,2]
[380515686,1755798662367,-621.19,0.00021439,2]
[380515687,1755798662376,-618.6,0.00021439,2]
[380515688,1755798662386,-810.8,0.00021439,2]
[380515689,1755798662395,-3280.11,0.00021439,2]
[380515690,1755798662405,-480.0,0.00021439,2]
[380515691,1755798662415,-480.0,0.00021439,2]
[380515692,1755798662425,-589.21,0.00021439,2]
[380515693,1755798662435,-621.55,0.00021439,2]
[380515694,1755798662444,-1495.64,0.00021439,2]
[380515695,1755798662454,-695.63,0.00021439,2]
[380515696,1755798662464,-654.93,0.00021439,2]
[380515697,1755798662474,-865.47,0.00021439,2]
[380515698,1755798662484,-3867.5,0.00021439,2]
[380515699,1755798662494,-7219.66,0.00021439,2]
[380515700,1755798662504,-951.02,0.00021439,2]
[380515701,1755798662517,-1837.57,0.00021439,2]
[380515702,1755798662527,-818.75,0.00021439,2]
[380515703,1755798662537,-480.0,0.00021439,2]
[380515704,1755798662549,-548.67,0.00021439,2]
[380515705,1755798662559,-1521.11,0.00021439,2]
[380515706,1755798662569,-1381.99,0.00021439,2]
[380515707,1755798662716,-480.0,0.00021439,2]
[380515708,1755798662725,-866.39,0.00021439,2]
[380515709,1755798662734,-181.81349961,0.00021439,2]
[380515710,1755798662744,-480.0,0.00021439,2]
[380515711,1755798662753,-2767.93,0.00021439,2]
[380515712,1755798662762,-480.0,0.00021439,2]
[380515713,1755798662772,-480.0,0.00021439,2]
[380515714,1755798662781,-151.0,0.0002144,2]
[380515715,1755798662789,-151.88639,0.0002144,2]
[380515716,1755798662800,-151.0,0.0002144,2]
[380515717,1755798662809,-556.05,0.0002144,2]
[380515718,1755798662818,-480.0,0.0002144,2]
[380515719,1755798662827,-480.0,0.0002144,2]
[380515720,1755798662839,-480.0,0.0002144,2]
[380515721,1755798662848,-494.94,0.0002144,2]
[380515722,1755798662857,-480.0,0.0002144,2]
[380515723,1755798662867,-480.0,0.0002144,2]
[380515724,1755798662877,-639.33,0.0002144,2]
[380515725,1755798662886,-480.0,0.0002144,2]
[380515726,1755798662896,-480.0,0.0002144,2]
[380515727,1755798662905,-1760.29,0.0002144,2]
[380515728,1755798662914,-480.0,0.0002144,2]
[380515729,1755798662923,-480.0,0.0002144,2]
[380515730,1755798662933,-480.0,0.0002144,2]
[380515731,1755798662942,-590.52,0.0002144,2]
[380515732,1755798662952,-480.0,0.00021441,2]
[380515733,1755798662961,-480.0,0.00021441,2]
[380515734,1755798662970,-480.0,0.00021441,2]
[380515735,1755798662979,-635.25,0.00021441,2]
[380515736,1755798662989,-480.0,0.00021441,2]
[380515737,1755798662998,-480.0,0.00021441,2]
[380515738,1755798663007,-799.42,0.00021441,2]
[380515739,1755798663016,-480.0,0.00021441,2]
[380515740,1755798663025,-480.0,0.00021441,2]
[380515741,1755798663035,-480.0,0.00021441,2]
[380515742,1755798663046,-480.0,0.00021441,2]
[380515743,1755798663057,-480.0,0.00021441,2]
[380515744,1755798663067,-480.0,0.00021441,2]
[380515745,1755798663076,-4000.0,0.00021517,4]
[380515746,1755798663087,-480.0,0.0002154,2]
[380515747,1755798663096,-480.0,0.0002154,2]
[380515748,1755798663106,-480.0,0.0002154,2]
[380515749,1755798663116,-480.0,0.0002154,2]
[380515750,1755798663126,-578.48,0.00021543,2]
[380515751,1755798663135,-480.0,0.00021543,2]
[380515752,1755798663145,-480.0,0.00021543,2]
[380515753,1755798663154,-480.0,0.00021543,2]
[380515754,1755798663164,-187.23706098,0.00021589,2]
[380515755,1755798663174,-260.0,0.00021596,2]
[380515756,1755798663183,-480.0,0.00021602,2]
[380515757,1755798663192,-480.0,0.00021603,2]
[380515758,1755798663202,-674.49,0.00021603,2]
[380515759,1755798663211,-862.49,0.00021603,2]
[380515760,1755798663220,-730.52,0.00021603,2]
[380515761,1755798663231,-2992.55,0.00021603,2]
[380515762,1755798663241,-609.58,0.00021604,2]
[380515763,1755798663250,-1761.08,0.00021604,2]
[380515764,1755798663260,-5081.96,0.00021604,2]
[380515765,1755798663270,-1099.74,0.00021604,2]
[380515766,1755798663281,-480.0,0.00021604,2]
[380515767,1755798663292,-151.0,0.00021604,2]
[380515768,1755798663302,-480.0,0.00021604,2]
[380515769,1755798663312,-754.87,0.00021604,2]
[380515770,1755798663323,-151.0,0.00021604,2]
[380515771,1755798663333,-480.0,0.00021604,2]
[380515772,1755798663343,-4586.59,0.00021604,2]
[380515773,1755798663353,-4179.87,0.00021604,2]
[380515774,1755798663363,-3124.04,0.00021604,2]
[380515775,1755798663372,-609.335216,0.00021604,2]
[380515776,1755798663381,-609.335216,0.00021604,2]
[380515777,1755798663390,-609.335216,0.00021604,2]
[380515778,1755798663400,-609.335216,0.00021604,2]
[380515779,1755798663409,-595.07,0.00021604,2]
[380515780,1755798663419,-480.0,0.00021604,2]
[380515781,1755798663429,-151.0,0.00021604,2]
[380515782,1755798663438,-151.0,0.00021604,2]
[380515783,1755798663447,-2044.44,0.00021604,2]
[380515784,1755798663456,-151.0,0.00021604,2]
[380515785,1755798663465,-889.73,0.00021604,2]
[380515786,1755798663475,-2890.7,0.00021604,2]
[380515787,1755798663484,-480.0,0.00021604,2]
[380515788,1755798663494,-876.44,0.00021604,2]
[380515789,1755798663503,-480.0,0.00021604,2]
[380515790,1755798663512,-480.0,0.00021604,2]
[380515791,1755798663522,-480.0,0.00021604,2]
[380515792,1755798663531,-1169.46,0.00021604,2]
[380515793,1755798663540,-1078.29,0.00021604,2]
[380515794,1755798663551,-569.42752204,0.00021613,2]
[380515795,1755798663560,-480.0,0.00021613,2]
[380515796,1755798663570,-1033.16,0.00021613,2]
[380515797,1755798663579,-1678.05,0.00021613,2]
[380515798,1755798663588,-957.28,0.00021613,2]
[380515799,1755798663598,-322.51435712,0.00021613,2]
[380515800,1755798663607,-647.49,0.00021613,2]
[380515801,1755798663616,-151.0,0.00021613,2]
[380515802,1755798663626,-151.0,0.00021613,2]
[380515803,1755798663636,-151.0,0.00021613,2]
[380515804,1755798663646,-151.0,0.00021613,2]
[380515805,1755798663655,-151.0,0.00021613,2]
[380515806,1755798663665,-151.0,0.00021613,2]
[380515807,1755798663674,-151.0,0.00021613,2]
[380515808,1755798663684,-480.0,0.00021613,2]
[380515809,1755798663693,-151.0,0.00021613,2]
[380515810,1755798663702,-1420.27,0.00021613,2]
[380515811,1755798663711,-480.0,0.00021613,2]
[380515812,1755798663721,-480.0,0.00021613,2]
[380515813,1755798663730,-151.0,0.00021613,2]
[380515814,1755798663740,-160.034594,0.00021613,2]
[380515815,1755798663749,-614.7,0.00021613,2]
[380515816,1755798663758,-202.502448,0.00021613,2]
[380515817,1755798663768,-202.502448,0.00021613,2]
[380515818,1755798663778,-202.502448,0.00021613,2]
[380515819,1755798663788,-151.0,0.00021613,2]
[380515820,1755798663799,-202.502448,0.00021613,2]
[380515821,1755798663808,-1678.64,0.00021613,2]
[380515822,1755798663817,-151.0,0.00021613,2]
[380515823,1755798663827,-517.14,0.00021613,2]
[380515824,1755798663836,-767.97,0.00021613,2]
[380515825,1755798663846,-1078.68,0.00021613,2]
[380515826,1755798663856,-1461.11,0.00021613,2]
[380515827,1755798663865,-480.0,0.00021613,2]
[380515828,1755798663874,-480.0,0.00021613,2]
[380515829,1755798663884,-480.0,0.00021613,2]
[380515830,1755798663894,-836.24,0.00021613,2]
[380515831,1755798663903,-793.0,0.00021613,2]
[380515832,1755798663913,-1030.12,0.00021613,2]
[380515833,1755798663923,-480.0,0.00021613,2]
[380515834,1755798663932,-670.29,0.00021613,2]
[380515835,1755798663942,-151.0,0.00021614,2]
[380515836,1755798663952,-151.0,0.00021614,2]
[380515837,1755798663961,-499.33,0.00021614,2]
[380515838,1755798663971,-480.0,0.00021614,2]
[380515839,1755798663982,-1326.62,0.00021614,2]
[380515840,1755798663991,-480.0,0.00021614,2]
[380515841,1755798664002,-480.0,0.00021614,2]
[380515842,1755798664012,-3284.89,0.00021614,2]
[380515843,1755798664021,-2041.53,0.00021614,2]
[380515844,1755798664030,-480.0,0.00021614,2]
[380515845,1755798664040,-924.89,0.00021614,2]
[380515846,1755798664054,-11152.98,0.00021614,2]
[380515847,1755798664065,-9515.28,0.00021614,2]
[380515848,1755798664074,-1197.74,0.00021614,2]
[380515849,1755798664085,-2074.83,0.00021614,2]
[380515850,1755798664095,-459.74192186,0.00021669,2]
[380515851,1755798664106,-1838.96768743,0.00021669,2]
[380515852,1755798664115,-4133.53961941,0.00021669,2]
[380515853,1755798664124,-1000.0,0.000217,2]
[380515854,1755798664134,-301.86107626,0.00021712,2]
[380515855,1755798664144,-480.0,0.00021713,2]
[380515856,1755798664154,-480.0,0.00021713,2]
[380515857,1755798664163,-480.0,0.00021713,2]
[380515858,1755798664173,-723.94,0.00021713,2]
[380515859,1755798664182,-480.0,0.00021713,2]
[380515860,1755798664191,-727.19,0.00021713,2]
[380515861,1755798664201,-480.0,0.00021713,2]
[380515862,1755798664211,-480.0,0.00021713,2]
[380515863,1755798664220,-480.0,0.00021713,2]
[380515864,1755798664230,-1507.01,0.00021713,2]
[380515865,1755798664240,-492.61,0.00021713,2]
[380515866,1755798664249,-524.9,0.00021713,2]
[380515867,1755798664258,-1428.16,0.00021713,2]
[380515868,1755798664269,-872.4,0.00021713,2]
[380515869,1755798664278,-483.84,0.00021713,2]
[380515870,1755798664288,-480.0,0.00021713,2]
[380515871,1755798664299,-480.0,0.00021713,2]
[380515872,1755798664308,-480.0,0.00021713,2]
[380515873,1755798664317,-480.0,0.00021713,2]
[380515874,1755798664327,-480.0,0.00021713,2]
[380515875,1755798664336,-621.19,0.00021713,2]
[380515876,1755798664346,-151.0,0.00021713,2]
[380515877,1755798664355,-151.0,0.00021713,2]
[380515878,1755798664365,-618.6,0.00021713,2]
[380515879,1755798664374,-810.8,0.00021713,2]
[380515880,1755798664383,-3280.11,0.00021713,2]
[380515881,1755798664392,-456.86855811,0.00021713,2]
[380515882,1755798664401,-480.0,0.00021713,2]
[380515883,1755798664412,-589.21,0.00021713,2]
[380515884,1755798664421,-621.55,0.00021713,2]
[380515885,1755798664431,-1495.64,0.00021713,2]
[380515886,1755798664441,-695.63,0.00021713,2]
[380515887,1755798664451,-654.93,0.00021713,2]
[380515888,1755798664459,-865.47,0.00021713,2]
[380515889,1755798664469,-3867.5,0.00021713,2]
[380515890,1755798664479,-7219.66,0.00021713,2]
[380515891,1755798664489,-951.02,0.00021713,2]
[380515892,1755798664498,-1837.57,0.00021713,2]
[380515893,1755798664508,-818.75,0.00021713,2]
[380515894,1755798664517,-480.0,0.00021713,2]
[380515895,1755798664527,-548.67,0.00021713,2]
[380515896,1755798664536,-1521.11,0.00021713,2]
[380515897,1755798664546,-1381.99,0.00021713,2]
[380515898,1755798664556,-480.0,0.00021713,2]
[380515899,1755798664565,-866.39,0.00021713,2]
[380515900,1755798664575,-480.0,0.00021713,2]
[380515901,1755798664584,-2767.93,0.00021713,2]
[380515902,1755798664594,-480.0,0.00021713,2]
[380515903,1755798664603,-480.0,0.00021713,2]
[380515904,1755798664612,-151.0,0.00021714,2]
[380515905,1755798664621,-151.0,0.00021714,2]
[380515906,1755798664630,-556.05,0.00021714,2]
[380515907,1755798664639,-224.770708,0.00021714,2]
[380515908,1755798664649,-224.770708,0.00021714,2]
[380515909,1755798664658,-224.770708,0.00021714,2]
[380515910,1755798664667,-224.770708,0.00021714,2]
[380515911,1755798664676,-480.0,0.00021714,2]
[380515912,1755798664687,-480.0,0.00021714,2]
[380515913,1755798664697,-480.0,0.00021714,2]
[380515914,1755798664706,-494.94,0.00021714,2]
[380515915,1755798664716,-480.0,0.00021714,2]
[380515916,1755798664725,-480.0,0.00021714,2]
[380515917,1755798664734,-639.33,0.00021714,2]
[380515918,1755798664743,-480.0,0.00021714,2]
[380515919,1755798664752,-480.0,0.00021714,2]
[380515920,1755798664762,-1760.29,0.00021714,2]
[380515921,1755798664771,-480.0,0.00021714,2]
[380515922,1755798664781,-480.0,0.00021714,2]
[380515923,1755798664790,-590.52,0.00021714,2]
[380515924,1755798664801,-480.0,0.00021715,2]
[380515925,1755798664810,-480.0,0.00021715,2]
[380515926,1755798664819,-480.0,0.00021715,2]
[380515927,1755798664829,-635.25,0.00021715,2]
[380515928,1755798664838,-480.0,0.00021715,2]
[380515929,1755798664847,-480.0,0.00021715,2]
[380515930,1755798664856,-799.42,0.00021715,2]
[380515931,1755798664865,-480.0,0.00021715,2]
[380515932,1755798664874,-480.0,0.00021715,2]
[380515933,1755798664883,-480.0,0.00021715,2]
[380515934,1755798664893,-480.0,0.00021715,2]
[380515935,1755798664901,-480.0,0.00021715,2]
[380515936,1755798664910,-168.0,0.00021725,2]
[380515937,1755798664920,-301.0,0.00021749,2]
[380515938,1755798664930,-8413.69911019,0.00021771,2]
[380515939,1755798664939,-1500.0,0.00021782,2]
[380515940,1755798664948,-500.0,0.00021782,2]
[380515941,1755798664957,-1500.0,0.00021782,2]
[380515942,1755798664966,-1500.0,0.00021782,2]
[380515943,1755798664976,-1500.0,0.00021782,2]
[380515944,1755798664985,-1500.0,0.00021782,2]
[380515945,1755798664994,-1500.0,0.00021782,2]
[380515946,1755798665004,-914.74784878,0.00021782,2]
[380515947,1755798665013,-1500.0,0.00021782,2]
[380515948,1755798665023,-1500.0,0.00021782,2]
[380515949,1755798665032,-1500.0,0.00021782,2]
[380515950,1755798665042,-480.0,0.00021814,2]
[380515951,1755798665055,-480.0,0.00021814,2]
[380515952,1755798665065,-480.0,0.00021814,2]
[380515953,1755798665074,-578.48,0.00021817,2]
[380515954,1755798665083,-480.0,0.00021817,2]
[380515955,1755798665093,-480.0,0.00021817,2]
[380515956,1755798665102,-480.0,0.00021817,2]
[380515957,1755798665112,-152.58231,0.00021856,7]
[380515958,1755798665120,-480.0,0.00021876,2]
[380515959,1755798665131,-480.0,0.00021877,2]
[380515960,1755798665142,-674.49,0.00021877,2]
[380515961,1755798665150,-862.49,0.00021877,2]
[380515962,1755798665159,-730.52,0.00021877,2]
[380515963,1755798665168,-2992.55,0.00021877,2]
[380515964,1755798665178,-609.58,0.00021878,2]
[380515965,1755798665186,-1761.08,0.00021878,2]